[Event "GER-chT Youth Countries 2019"]
[Site "Wuerzburg"]
[Date "2019.10.02"]
[Round "1"]
[White "Möller, Hannah"]
[Black "Hommer, Jeremy"]
[Result "0-1"]
[ECO "A04"]
[WhiteElo "1859"]
[BlackElo "2133"]
[Annotator "NA"]
[PlyCount "111"]
[EventDate "2019.10.02"]
[EventType "swiss"]
[EventRounds "7"]
[EventCountry "GER"]
[SourceTitle "playchess.com"]
[Source "ChessBase"]
[SourceQuality "1"]
[WhiteTeam "Bremen/Niedersachsen"]
[BlackTeam "Niedersachsen"]
[WhiteTeamCountry "GER"]
[BlackTeamCountry "GER"]
[TimeControl "40/5400+30:1800+30"]

1. Nf3 {[%emt 0:00:00]} e6 {[%emt 0:00:00]} 2. g3 {[%emt 0:00:00]} b6 {[%emt 0:00:00]} 3. Bg2 {[%emt 0:00:00]} Bb7 {[%emt 0:00:00]} 4. O-O {[%emt 0:00:00]} Nf6 {[%emt 0:00:05]} 5. d4 {[%emt 0:00:24]} g6 {[%emt 0:03:20]} 6. c4 {[%emt 0:00:28]} Bg7 {[%emt 0:00:06]} 7. Nc3 {[%emt 0:00:05]} Ne4 {[%emt 0:03:44]} 8. Nxe4 {[%emt 0:02:40]} Bxe4 {[%emt 0:00:05]} 9. Bf4 {[%emt 0:01:43]} d6 {[%emt 0:05:28]} 10. Qd2 {[%emt 0:02:02]} O-O {[%emt 0:06:35]} 11. Bh6 {[%emt 0:01:48]} Nd7 {[%emt 0:07:54]} 12. Bxg7 {[%emt 0:00:32]} Kxg7 {[%emt 0:00:02]} 13. Qf4 {[%emt 0:06:38]} Bb7 {[%emt 0:13:11]} 14. e4 {[%emt 0:01:05]} f6 {[%emt 0:01:17]} 15. Qe3 {[%emt 0:02:27]} e5 {[%emt 0:04:34]} 16. d5 {[%emt 0:00:11]} a5 {[%emt 0:02:05]} 17. h4 {[%emt 0:00:53]} Qe7 {[%emt 0:06:19]} 18. Nh2 {[%emt 0:00:54]} Rae8 {[%emt 0:03:17]} 19. Ng4 {[%emt 0:04:25]} Nc5 {[%emt 0:03:40]} 20. Qh6+ {[%emt 0:04:24]} Kg8 {[%emt 0:00:25]} 21. f4 {[%emt 0:00:52]} Qg7 {[%emt 0:11:14]} 22. Qxg7+ {[%emt 0:00:36]} Kxg7 {[%emt 0:00:02]} 23. fxe5 {[%emt 0:02:19]} fxe5 {[%emt 0:06:17]} 24. b3 {[%emt 0:02:43]} Bc8 {[%emt 0:00:50]} 25. Ne3 {[%emt 0:01:46]} Bd7 {[%emt 0:00:42]} 26. Nc2 {[%emt 0:03:30]} b5 {[%emt 0:04:40]} 27. Rab1 {[%emt 0:01:35]} bxc4 {[%emt 0:03:25]} 28. bxc4 {[%emt 0:00:40]} Bg4 {[%emt 0:02:15]} 29. Rf2 {[%emt 0:02:55]} Rb8 {[%emt 0:03:42]} 30. Na3 {[%emt 0:01:06]} Rxb1+ {[%emt 0:00:55]} 31. Nxb1 {[%emt 0:00:07]} Rb8 {[%emt 0:00:25]} 32. Nc3 {[%emt 0:00:13]} Rb4 {[%emt 0:01:08]} 33. Bf1 {[%emt 0:01:02]} a4 {[%emt 0:00:57]} 34. Kg2 {[%emt 0:06:28]} a3 {[%emt 0:00:24]} 35. Be2 {[%emt 0:00:32]} Bxe2 {[%emt 0:01:52]} 36. Rxe2 {[%emt 0:01:22]} Rxc4 {[%emt 0:00:20]} 37. Nb5 {[%emt 0:00:03]} Nxe4 {[%emt 0:04:25]} 38. Nxa3 {[%emt 0:00:48]} Nc3 {[%emt 0:00:17]} 39. Nxc4 {[%emt 0:04:36]} Nxe2 {[%emt 0:00:06]} 40. a4 {[%emt 0:00:19]} Nc3 {[%emt 0:02:39]} 41. a5 {[%emt 0:30:05]} Nb5 {[%emt 0:11:25]} 42. a6 {[%emt 0:00:00]} Kf7 {[%emt 0:01:04]} 43. Na5 {[%emt 0:00:00]} Na7 {[%emt 0:00:21]} 44. Nc6 {[%emt 0:00:00]} Nc8 {[%emt 0:01:20]} 45. a7 {[%emt 0:00:00]} Nb6 {[%emt 0:00:14]} 46. Nd8+ {[%emt 0:00:00]} Ke7 {[%emt 0:01:25]} 47. Ne6 {[%emt 0:00:00]} c6 {[%emt 0:12:18]} 48. Nc7 {[%emt 0:00:00]} Kd7 {[%emt 0:00:49]} 49. a8=Q {[%emt 0:00:00]} Nxa8 {[%emt 0:00:02]} 50. Nxa8 {[%emt 0:00:00]} cxd5 {[%emt 0:00:04]} 51. Nb6+ {[%emt 0:00:00]} Kc6 {[%emt 0:00:42]} 52. Na4 {[%emt 0:00:00]} Kb5 {[%emt 0:00:50]} 53. Nb2 {[%emt 0:00:00]} e4 {[%emt 0:00:08]} 54. Kf2 {[%emt 0:00:00]} d4 {[%emt 0:00:26]} 55. Ke2 {[%emt 0:00:00]} d5 {[%emt 0:01:51]} 56. g4 {[%emt 0:00:00] normal} 0-1

[Event "GER-chT Youth Countries 2019"]
[Site "Wuerzburg"]
[Date "2019.10.02"]
[Round "1"]
[White "Kempe, Caius Emilian"]
[Black "Sperling, Niclas"]
[Result "1/2-1/2"]
[ECO "E87"]
[WhiteElo "1835"]
[BlackElo "1656"]
[Annotator "NA"]
[PlyCount "97"]
[EventDate "2019.10.02"]
[EventType "swiss"]
[EventRounds "7"]
[EventCountry "GER"]
[SourceTitle "playchess.com"]
[Source "ChessBase"]
[SourceQuality "1"]
[WhiteTeam "Sachsen"]
[BlackTeam "Brandenburg/Berlin"]
[WhiteTeamCountry "GER"]
[BlackTeamCountry "GER"]
[TimeControl "40/5400+30:1800+30"]

1. d4 {[%emt 0:00:00]} Nf6 {[%emt 0:00:00]} 2. c4 {[%emt 0:00:00]} g6 {[%emt 0:00:00]} 3. f3 {[%emt 0:00:10]} Bg7 {[%emt 0:00:41]} 4. e4 {[%emt 0:00:08]} d6 {[%emt 0:00:33]} 5. Nc3 {[%emt 0:00:08]} O-O {[%emt 0:00:42]} 6. Be3 {[%emt 0:02:20]} e5 {[%emt 0:08:14]} 7. d5 {[%emt 0:00:11]} Nbd7 {[%emt 0:00:06]} 8. Nge2 {[%emt 0:00:55]} Nh5 {[%emt 0:10:30]} 9. Qd2 {[%emt 0:02:34]} f5 {[%emt 0:05:26]} 10. O-O-O {[%emt 0:02:23]} f4 {[%emt 0:08:20]} 11. Bf2 {[%emt 0:00:08]} a6 {[%emt 0:05:45]} 12. Kb1 {[%emt 0:00:29]} Rf7 {[%emt 0:05:26]} 13. Nc1 {[%emt 0:02:33]} Qf8 {[%emt 0:02:28]} 14. Nb3 {[%emt 0:02:16]} Nhf6 {[%emt 0:09:18]} 15. Rc1 {[%emt 0:01:42]} b6 {[%emt 0:08:04]} 16. Be2 {[%emt 0:01:16]} Nc5 {[%emt 0:01:51]} 17. Bd1 {[%emt 0:06:26]} Nfd7 {[%emt 0:00:35]} 18. Na1 {[%emt 0:01:11]} Nb8 {[%emt 0:09:41]} 19. h4 {[%emt 0:19:24]} Bh6 {[%emt 0:03:03]} 20. Be2 {[%emt 0:02:59]} Nbd7 {[%emt 0:01:22]} 21. Rcg1 {[%emt 0:08:46]} Nf6 {[%emt 0:03:54]} 22. Nc2 {[%emt 0:01:09]} Nh5 {[%emt 0:01:30]} 23. Bd1 {[%emt 0:04:50]} Bd7 {[%emt 0:00:43]} 24. Ne2 {[%emt 0:03:03]} b5 {[%emt 0:02:53]} 25. b4 {[%emt 0:07:36]} Nb7 {[%emt 0:01:36]} 26. c5 {[%emt 0:03:40]} c6 {[%emt 0:02:29]} 27. dxc6 {[%emt 0:04:43]} Bxc6 {[%emt 0:00:21]} 28. cxd6 {[%emt 0:01:53]} Qxd6 {[%emt 0:00:36]} 29. Qxd6 Nxd6 {[%emt 0:00:02]} 30. Na3 {[%emt 0:02:20]} Rd7 {[%emt 0:02:24]} 31. Bb3+ {[%emt 0:00:23]} Nf7 {[%emt 0:00:36]} 32. Rd1 {[%emt 0:00:29]} Rad8 {[%emt 0:00:21]} 33. Nc3 {[%emt 0:01:52]} Rxd1+ {[%emt 0:01:00]} 34. Rxd1 {[%emt 0:00:01]} Rxd1+ {[%emt 0:00:01]} 35. Nxd1 {[%emt 0:00:01]} Ng3 {[%emt 0:01:29]} 36. Nb2 {[%emt 0:01:38]} Nf1 {[%emt 0:01:47]} 37. Kc2 {[%emt 0:00:49]} Ne3+ {[%emt 0:00:08]} 38. Kd2 {[%emt 0:00:13]} Nxg2 {[%emt 0:01:58]} 39. Nd3 {[%emt 0:00:33]} Bf8 {[%emt 0:02:55]} 40. Nc2 {[%emt 0:01:22]} Bd6 {[%emt 0:00:34]} 41. Ke2 {[%emt 0:33:27]} Kg7 {[%emt 0:03:20]} 42. Kf1 {[%emt 0:00:00]} Ne3+ {[%emt 0:01:08]} 43. Nxe3 {[%emt 0:00:00]} fxe3 {[%emt 0:00:02]} 44. Bxe3 {[%emt 0:00:00]} Nd8 {[%emt 0:01:25]} 45. Nc5 {[%emt 0:00:00]} Bb7 {[%emt 0:01:29]} 46. Nxb7 {[%emt 0:00:00]} Nxb7 {[%emt 0:00:14]} 47. Bd5 {[%emt 0:00:00]} Nd8 {[%emt 0:00:57]} 48. a3 {[%emt 0:00:00]} Bc7 {[%emt 0:01:03]} 49. Ke2 {normal} 1/2-1/2

[Event "GER-chT Youth Countries 2019"]
[Site "Wuerzburg"]
[Date "2019.10.02"]
[Round "1"]
[White "Rempe, Jonas"]
[Black "Hubert, Charlotte"]
[Result "1/2-1/2"]
[ECO "B47"]
[WhiteElo "1816"]
[BlackElo "1341"]
[Annotator "NA"]
[PlyCount "124"]
[EventDate "2019.10.02"]
[EventType "swiss"]
[EventRounds "7"]
[EventCountry "GER"]
[SourceTitle "playchess.com"]
[Source "ChessBase"]
[SourceQuality "1"]
[WhiteTeam "Schleswig-Holstein"]
[BlackTeam "Hamburg/Schleswig-Holstein"]
[WhiteTeamCountry "GER"]
[BlackTeamCountry "GER"]
[TimeControl "40/5400+30:1800+30"]

1. e4 {[%emt 0:00:00]} c5 {[%emt 0:00:00]} 2. Nf3 {[%emt 0:00:00]} e6 {[%emt 0:00:00]} 3. d4 {[%emt 0:00:00]} cxd4 {[%emt 0:00:17]} 4. Nxd4 {[%emt 0:00:00]} Nc6 {[%emt 0:00:12]} 5. Nc3 {[%emt 0:00:06]} Qc7 {[%emt 0:00:54]} 6. g3 {[%emt 0:00:20]} a6 {[%emt 0:03:38]} 7. Bg2 {[%emt 0:00:05]} Bb4 {[%emt 0:02:17]} 8. O-O {[%emt 0:00:58]} Nf6 {[%emt 0:04:37]} 9. Bg5 {[%emt 0:07:44]} Be7 {[%emt 0:02:35]} 10. Nb3 {[%emt 0:03:08]} O-O {[%emt 0:07:18]} 11. f4 {[%emt 0:06:29]} d6 {[%emt 0:10:23]} 12. Qe2 {[%emt 0:04:41]} Nd7 {[%emt 0:10:44]} 13. Bxe7 {[%emt 0:06:37]} Nxe7 {[%emt 0:00:09]} 14. Rad1 {[%emt 0:00:20]} Rd8 {[%emt 0:06:34]} 15. g4 {[%emt 0:01:13]} Rb8 {[%emt 0:16:05]} 16. g5 {[%emt 0:01:36]} b5 {[%emt 0:05:23]} 17. Bh3 {[%emt 0:11:16]} Nf8 {[%emt 0:05:56]} 18. f5 {[%emt 0:00:47]} exf5 {[%emt 0:05:57]} 19. exf5 {[%emt 0:00:56]} Nc6 {[%emt 0:02:32]} 20. Nd5 {[%emt 0:02:25]} Qb7 {[%emt 0:02:18]} 21. Bg2 {[%emt 0:01:10]} Qa7+ {[%emt 0:03:11]} 22. Kh1 {[%emt 0:00:46]} Ne5 {[%emt 0:01:09]} 23. h3 {[%emt 0:03:32]} Re8 {[%emt 0:02:02]} 24. f6 {[%emt 0:00:31]} g6 {[%emt 0:01:23]} 25. Ne7+ {[%emt 0:00:23]} Rxe7 {[%emt 0:02:01]} 26. fxe7 {[%emt 0:00:01]} Qxe7 {[%emt 0:00:15]} 27. Rfe1 {[%emt 0:01:31]} Qxg5 {[%emt 0:01:20]} 28. Rxd6 {[%emt 0:00:30]} Nc4 {[%emt 0:00:45]} 29. Rd5 {[%emt 0:00:27]} Qg3 {[%emt 0:01:10]} 30. Rd3 {[%emt 0:02:06]} Qc7 {[%emt 0:01:09]} 31. c3 {[%emt 0:00:55]} Bf5 {[%emt 0:00:28]} 32. Re3 {[%emt 0:01:22]} Nxe3 {[%emt 0:00:20]} 33. Qxe3 {[%emt 0:00:01]} Be6 {[%emt 0:00:36]} 34. Nd4 {[%emt 0:00:09]} Re8 {[%emt 0:00:48]} 35. Qe5 {[%emt 0:01:41]} Qxe5 {[%emt 0:00:14]} 36. Rxe5 {[%emt 0:00:02]} Bd7 {[%emt 0:00:54]} 37. Rxe8 {[%emt 0:00:30]} Bxe8 {[%emt 0:00:06]} 38. Bb7 {[%emt 0:00:49]} a5 {[%emt 0:00:23]} 39. Ba6 {[%emt 0:00:06]} b4 {[%emt 0:00:53]} 40. cxb4 {[%emt 0:00:01]} axb4 {[%emt 0:00:12]} 41. Nc2 {[%emt 0:30:10]} b3 {[%emt 0:30:33]} 42. axb3 {[%emt 0:02:14]} Bc6+ {[%emt 0:01:13]} 43. Kg1 {[%emt 0:00:13]} Nd7 {[%emt 0:00:00]} 44. b4 {[%emt 0:00:00]} Nb6 {[%emt 0:00:00]} 45. Na3 {[%emt 0:00:00]} Kf8 {[%emt 0:00:00]} 46. Nc4 {[%emt 0:00:00]} Nxc4 {[%emt 0:00:00]} 47. Bxc4 {[%emt 0:00:00]} Ke7 {[%emt 0:00:00]} 48. Kf2 {[%emt 0:00:00]} f5 {[%emt 0:00:00]} 49. Ke3 {[%emt 0:00:00]} g5 {[%emt 0:00:00]} 50. Bd3 {[%emt 0:00:00]} f4+ {[%emt 0:00:00]} 51. Kf2 {[%emt 0:00:00]} h6 {[%emt 0:00:00]} 52. Bc4 {[%emt 0:00:00]} Kd6 {[%emt 0:00:00]} 53. b3 {[%emt 0:00:00]} Ke5 {[%emt 0:00:00]} 54. Ba6 {[%emt 0:00:00]} Kd5 {[%emt 0:00:00]} 55. b5 {[%emt 0:00:00]} Ba8 {[%emt 0:00:00]} 56. b4 {[%emt 0:00:00]} Kd6 {[%emt 0:00:00]} 57. Bc8 {[%emt 0:00:00]} Kc7 {[%emt 0:00:00]} 58. Be6 {[%emt 0:00:00]} Kb6 {[%emt 0:00:00]} 59. Bd7 {[%emt 0:00:00]} Bd5 {[%emt 0:00:00]} 60. Be8 {[%emt 0:00:00]} Bc4 {[%emt 0:00:00]} 61. Kf3 {[%emt 0:00:00]} Bxb5 {[%emt 0:00:00]} 62. Bh5 {[%emt 0:00:00]} Bf1 {normal} 1/2-1/2

[Event "GER-chT Youth Countries 2019"]
[Site "Wuerzburg"]
[Date "2019.10.02"]
[Round "1"]
[White "Bock, Marlon"]
[Black "Wiesner, Paula"]
[Result "0-1"]
[ECO "A46"]
[WhiteElo "1671"]
[BlackElo "1958"]
[Annotator "NA"]
[PlyCount "81"]
[EventDate "2019.10.02"]
[EventType "swiss"]
[EventRounds "7"]
[EventCountry "GER"]
[SourceTitle "playchess.com"]
[Source "ChessBase"]
[SourceQuality "1"]
[WhiteTeam "Thüringen"]
[BlackTeam "Berlin"]
[WhiteTeamCountry "GER"]
[BlackTeamCountry "GER"]
[TimeControl "40/5400+30:1800+30"]

1. d4 {[%emt 0:00:00]} e6 {[%emt 0:00:00]} 2. Nf3 {[%emt 0:00:00]} Nf6 {[%emt 0:00:00]} 3. e3 {[%emt 0:00:00]} c5 {[%emt 0:00:00]} 4. Bd3 {[%emt 0:00:41]} Be7 {[%emt 0:00:17]} 5. O-O {[%emt 0:00:37]} O-O {[%emt 0:00:52]} 6. Nbd2 {[%emt 0:01:33]} b6 {[%emt 0:01:04]} 7. c3 {[%emt 0:05:41]} d5 {[%emt 0:02:52]} 8. b3 {[%emt 0:03:45]} Bb7 {[%emt 0:04:35]} 9. Bb2 {[%emt 0:02:11]} Nbd7 {[%emt 0:04:26]} 10. Ne5 {[%emt 0:02:17]} Qc7 {[%emt 0:04:50]} 11. f4 {[%emt 0:03:29]} Ne4 {[%emt 0:03:25]} 12. Rc1 {[%emt 0:03:50]} f6 {[%emt 0:07:12]} 13. Nxd7 {[%emt 0:09:22]} Qxd7 {[%emt 0:00:20]} 14. Nf3 {[%emt 0:00:42]} b5 {[%emt 0:04:31]} 15. c4 {[%emt 0:13:28]} bxc4 {[%emt 0:05:18]} 16. bxc4 {[%emt 0:00:11]} Rac8 {[%emt 0:01:56]} 17. Qe2 {[%emt 0:05:25]} Rfd8 {[%emt 0:05:07]} 18. Rfd1 {[%emt 0:03:05]} Qa4 {[%emt 0:02:17]} 19. Qc2 {[%emt 0:16:28]} Qxc2 {[%emt 0:02:48]} 20. Rxc2 {[%emt 0:01:01]} cxd4 {[%emt 0:05:20]} 21. exd4 {[%emt 0:06:48]} dxc4 {[%emt 0:01:17]} 22. Bxc4 {[%emt 0:03:41]} Bd5 {[%emt 0:02:08]} 23. Bd3 {[%emt 0:00:25]} Rxc2 {[%emt 0:02:56]} 24. Bxc2 {[%emt 0:00:03]} Rb8 {[%emt 0:06:47]} 25. Bxe4 {[%emt 0:05:29]} Bxe4 {[%emt 0:03:00]} 26. Bc3 {[%emt 0:01:12]} Bd6 {[%emt 0:08:30]} 27. Nd2 {[%emt 0:02:19]} Bd5 {[%emt 0:00:50]} 28. g3 {[%emt 0:00:12]} Rc8 {[%emt 0:00:33]} 29. Ba5 {[%emt 0:02:42]} Rc2 {[%emt 0:03:51]} 30. Nb1 {[%emt 0:04:11]} Rg2+ {[%emt 0:03:08]} 31. Kf1 {[%emt 0:00:30]} Rxh2 {[%emt 0:00:40]} 32. Nc3 {[%emt 0:00:45]} Bxa2 {[%emt 0:01:48]} 33. Kg1 {[%emt 0:01:04]} Rc2 {[%emt 0:01:44]} 34. Nb5 {[%emt 0:01:04]} Bb8 {[%emt 0:01:10]} 35. Re1 {[%emt 0:00:35]} a6 {[%emt 0:02:24]} 36. Nc3 {[%emt 0:00:09]} Bc4 {[%emt 0:00:35]} 37. d5 {[%emt 0:00:15]} Ba7+ {[%emt 0:02:07]} 38. Kh1 {[%emt 0:00:12]} exd5 {[%emt 0:02:54]} 39. Re8+ {[%emt 0:00:40]} Kf7 {[%emt 0:00:04]} 40. Ra8 {[%emt 0:00:09]} Bd4 {[%emt 0:01:15]} 41. f5 {[%emt 0:31:50] normal} 0-1

[Event "GER-chT Youth Countries 2019"]
[Site "Wuerzburg"]
[Date "2019.10.02"]
[Round "1"]
[White "Buchholz, Maja"]
[Black "Woerz, Ann-Sophie"]
[Result "0-1"]
[ECO "A20"]
[WhiteElo "1671"]
[BlackElo "1500"]
[Annotator "NA"]
[PlyCount "48"]
[EventDate "2019.10.02"]
[EventType "team-tourn"]
[EventRounds "7"]
[EventCountry "GER"]
[SourceTitle "playchess.com"]
[Source "ChessBase"]
[SourceQuality "1"]
[WhiteTeam "Germany"]
[BlackTeam "Germany"]
[WhiteTeamCountry "GER"]
[BlackTeamCountry "GER"]
[TimeControl "40/5400+30:1800+30"]

1. c4 {[%emt 0:00:00]} e5 {[%emt 0:00:00]} 2. g3 {[%emt 0:00:00]} c6 {[%emt 0:00:00]} 3. Bg2 {[%emt 0:00:00]} d5 {[%emt 0:00:16]} 4. cxd5 {[%emt 0:00:16]} cxd5 {[%emt 0:00:08]} 5. d3 {[%emt 0:00:37]} Nf6 {[%emt 0:01:14]} 6. Nf3 {[%emt 0:00:23]} Nc6 {[%emt 0:00:42]} 7. a3 {[%emt 0:00:32]} Be6 {[%emt 0:09:10]} 8. b4 {[%emt 0:01:44]} a6 {[%emt 0:01:33]} 9. O-O {[%emt 0:01:06]} h6 {[%emt 0:02:31]} 10. Bb2 {[%emt 0:01:02]} Bd6 {[%emt 0:00:57]} 11. Nbd2 {[%emt 0:02:20]} O-O {[%emt 0:00:18]} 12. Rc1 {[%emt 0:01:26]} Qd7 {[%emt 0:02:32]} 13. Re1 {[%emt 0:00:36]} Rfe8 {[%emt 0:02:18]} 14. Nb3 {[%emt 0:03:29]} b6 {[%emt 0:03:14]} 15. Rc2 {[%emt 0:15:50]} Rac8 {[%emt 0:08:51]} 16. Nbd2 {[%emt 0:02:59]} Bb8 {[%emt 0:10:39]} 17. Qa1 {[%emt 0:10:57]} Bh3 {[%emt 0:10:43]} 18. Bh1 {[%emt 0:02:53]} Ng4 {[%emt 0:04:20]} 19. Nh4 {[%emt 0:11:07]} Ba7 {[%emt 0:07:40]} 20. Ng2 {[%emt 0:01:39]} Qf5 {[%emt 0:05:58]} 21. f3 {[%emt 0:04:53]} b5+ {[%emt 0:01:03]} 22. e3 Qxd3 {[%emt 0:01:02]} 23. Rc3 {[%emt 0:18:02]} Qxd2 {[%emt 0:01:03]} 24. Bc1 {[%emt 0:00:49]} Qf2# {[%emt 0:00:07] normal} 0-1

[Event "GER-chT Youth Countries 2019"]
[Site "Wuerzburg"]
[Date "2019.10.02"]
[Round "1"]
[White "Ermitsch, Magnus"]
[Black "Muller, Magnus"]
[Result "1-0"]
[ECO "C65"]
[WhiteElo "1671"]
[BlackElo "1478"]
[Annotator "NA"]
[PlyCount "59"]
[EventDate "2019.10.02"]
[EventType "swiss"]
[EventRounds "7"]
[EventCountry "GER"]
[SourceTitle "playchess.com"]
[Source "ChessBase"]
[SourceQuality "1"]
[WhiteTeam "Berlin"]
[BlackTeam "Thüringen"]
[WhiteTeamCountry "GER"]
[BlackTeamCountry "FAI"]
[TimeControl "40/5400+30:1800+30"]

1. e4 {[%emt 0:00:00]} e5 {[%emt 0:00:15]} 2. Nf3 {[%emt 0:00:34]} Nc6 {[%emt 0:00:07]} 3. Bb5 {[%emt 0:00:42]} Nf6 {[%emt 0:02:05]} 4. d3 {[%emt 0:01:32]} d6 {[%emt 0:01:22]} 5. c3 {[%emt 0:01:30]} Be7 {[%emt 0:00:08]} 6. O-O {[%emt 0:00:59]} O-O {[%emt 0:00:07]} 7. Re1 {[%emt 0:00:53]} Bd7 {[%emt 0:07:22]} 8. Ba4 {[%emt 0:03:55]} Re8 {[%emt 0:07:31]} 9. Nbd2 {[%emt 0:01:29]} Rb8 {[%emt 0:10:55]} 10. Nf1 {[%emt 0:05:34]} b5 {[%emt 0:00:28]} 11. Bc2 {[%emt 0:00:35]} h6 {[%emt 0:02:40]} 12. Ng3 {[%emt 0:06:51]} Bf8 {[%emt 0:03:17]} 13. Nh4 {[%emt 0:05:48]} g6 {[%emt 0:04:09]} 14. d4 {[%emt 0:07:03]} Nh7 {[%emt 0:10:49]} 15. Nf3 {[%emt 0:07:39]} Bg7 {[%emt 0:06:33]} 16. d5 {[%emt 0:06:09]} Ne7 {[%emt 0:01:19]} 17. h4 {[%emt 0:01:18]} c6 {[%emt 0:00:53]} 18. dxc6 {[%emt 0:00:59]} Bxc6 {[%emt 0:00:11]} 19. Nh2 {[%emt 0:03:39]} d5 {[%emt 0:10:40]} 20. Ng4 {[%emt 0:00:57]} h5 {[%emt 0:01:58]} 21. Nh6+ {[%emt 0:02:13]} Kf8 {[%emt 0:03:46]} 22. Qf3 {[%emt 0:01:05]} Nf6 {[%emt 0:01:20]} 23. Bg5 {[%emt 0:03:41]} Neg8 {[%emt 0:02:03]} 24. Nxg8 {[%emt 0:02:04]} Kxg8 {[%emt 0:00:48]} 25. Rad1 {[%emt 0:01:46]} Re6 {[%emt 0:06:10]} 26. exd5 {[%emt 0:03:51]} Bxd5 {[%emt 0:00:12]} 27. Bxf6 {[%emt 0:00:10]} Rxf6 {[%emt 0:02:31]} 28. Qxd5 {[%emt 0:00:27]} Qb6 {[%emt 0:00:37]} 29. Ne4 {[%emt 0:00:11]} Rf4 {[%emt 0:02:19]} 30. Qd6 {normal} 1-0

[Event "GER-chT Youth Countries 2019"]
[Site "Wuerzburg"]
[Date "2019.10.02"]
[Round "1"]
[White "Bungarten, Jona"]
[Black "Ensslinger, Colin"]
[Result "1-0"]
[ECO "B21"]
[WhiteElo "1669"]
[BlackElo "1687"]
[Annotator "NA"]
[PlyCount "87"]
[EventDate "2019.10.02"]
[EventType "swiss"]
[EventRounds "7"]
[EventCountry "GER"]
[SourceTitle "playchess.com"]
[Source "ChessBase"]
[SourceQuality "1"]
[WhiteTeam "Nordrhein-Westfalen"]
[BlackTeam "Team Süd"]
[WhiteTeamCountry "GER"]
[BlackTeamCountry "GER"]
[TimeControl "40/5400+30:1800+30"]

1. e4 {[%emt 0:00:00]} c5 {[%emt 0:00:00]} 2. d4 {[%emt 0:00:00]} cxd4 {[%emt 0:00:00]} 3. c3 {[%emt 0:00:00]} dxc3 {[%emt 0:00:00]} 4. Nxc3 {[%emt 0:00:00]} Nc6 {[%emt 0:00:10]} 5. Nf3 {[%emt 0:00:00]} e6 {[%emt 0:00:08]} 6. Bc4 {[%emt 0:00:11]} Nge7 {[%emt 0:00:13]} 7. Bg5 {[%emt 0:00:25]} h6 {[%emt 0:00:07]} 8. Be3 {[%emt 0:00:28]} a6 {[%emt 0:00:10]} 9. Bb3 {[%emt 0:00:29]} Ng6 {[%emt 0:01:15]} 10. O-O {[%emt 0:02:07]} Be7 {[%emt 0:00:36]} 11. Na4 {[%emt 0:02:40]} d6 {[%emt 0:02:34]} 12. Bb6 {[%emt 0:02:20]} Qd7 {[%emt 0:00:24]} 13. Qe2 {[%emt 0:00:23]} Nf4 {[%emt 0:14:43]} 14. Qc4 {[%emt 0:04:07]} O-O {[%emt 0:00:58]} 15. e5 {[%emt 0:03:13]} dxe5 {[%emt 0:02:13]} 16. Rfd1 {[%emt 0:07:44]} Nd5 {[%emt 0:02:57]} 17. Qe2 {[%emt 0:08:13]} Bd6 {[%emt 0:02:27]} 18. a3 {[%emt 0:06:11]} Re8 {[%emt 0:02:19]} 19. Rd2 {[%emt 0:04:59]} Nce7 {[%emt 0:10:06]} 20. Bc5 {[%emt 0:09:57]} b5 {[%emt 0:12:43]} 21. Nb6 {[%emt 0:03:43]} Nxb6 {[%emt 0:00:27]} 22. Rxd6 {[%emt 0:08:32]} Qc7 {[%emt 0:00:11]} 23. Qxe5 {[%emt 0:00:55]} Nd7 {[%emt 0:02:19]} 24. Rxd7 {[%emt 0:05:09]} Qxd7 {[%emt 0:00:09]} 25. Rd1 {[%emt 0:00:23]} Nd5 {[%emt 0:01:02]} 26. Bd4 {[%emt 0:02:50]} f6 {[%emt 0:01:18]} 27. Qg3 {[%emt 0:00:09]} Qc7 {[%emt 0:01:26]} 28. Qg4 {[%emt 0:04:09]} Qf4 {[%emt 0:13:33]} 29. Qg6 {[%emt 0:01:28]} Bb7 {[%emt 0:02:52]} 30. Bc2 {[%emt 0:05:26]} Rac8 {[%emt 0:07:17]} 31. Qh7+ {[%emt 0:05:56]} Kf8 {[%emt 0:00:56]} 32. Bg6 {[%emt 0:01:45]} Ne7 {[%emt 0:02:34]} 33. Bxe8 {[%emt 0:00:45]} Bxf3 {[%emt 0:00:42]} 34. gxf3 {[%emt 0:02:04]} Qxf3 {[%emt 0:00:25]} 35. Bh5 {[%emt 0:04:28]} Qxh5 {[%emt 0:00:59]} 36. Qd3 {[%emt 0:00:16]} Qg4+ {[%emt 0:00:47]} 37. Kh1 {[%emt 0:01:00]} Nd5 {[%emt 0:00:18]} 38. Rg1 {[%emt 0:01:31]} Qf4 {[%emt 0:02:05]} 39. b4 {[%emt 0:02:30]} g5 {[%emt 0:03:18]} 40. h3 {[%emt 0:01:27]} f5 {[%emt 0:02:22]} 41. Bc5+ {[%emt 0:31:02]} Kf7 {[%emt 0:30:40]} 42. Re1 {[%emt 0:00:13]} Qc4 {[%emt 0:06:45]} 43. Qf3 {[%emt 0:01:41]} Qc3 {[%emt 0:02:53]} 44. Qh5+ {[%emt 0:00:00] normal} 1-0

[Event "GER-chT Youth Countries 2019"]
[Site "Wuerzburg"]
[Date "2019.10.02"]
[Round "1"]
[White "Schwartz, Oliver"]
[Black "Yaghi, Rita"]
[Result "0-1"]
[ECO "B90"]
[WhiteElo "1650"]
[BlackElo "1973"]
[Annotator "NA"]
[PlyCount "56"]
[EventDate "2019.10.02"]
[EventType "team-tourn"]
[EventRounds "7"]
[EventCountry "GER"]
[SourceTitle "playchess.com"]
[Source "ChessBase"]
[SourceQuality "1"]
[WhiteTeam "Germany"]
[BlackTeam "Germany"]
[WhiteTeamCountry "GER"]
[BlackTeamCountry "GER"]
[TimeControl "40/5400+30:1800+30"]

1. e4 {[%emt 0:00:00]} c5 {[%emt 0:00:00]} 2. Nf3 {[%emt 0:00:00]} d6 {[%emt 0:00:00]} 3. d4 {[%emt 0:00:00]} cxd4 {[%emt 0:00:01]} 4. Nxd4 {[%emt 0:00:00]} Nf6 {[%emt 0:00:16]} 5. Nc3 {[%emt 0:00:06]} a6 {[%emt 0:00:03]} 6. f3 {[%emt 0:00:47]} e5 {[%emt 0:00:28]} 7. Nb3 {[%emt 0:00:21]} Be6 {[%emt 0:00:09]} 8. Be3 {[%emt 0:04:01]} Be7 {[%emt 0:00:24]} 9. Qd2 {[%emt 0:00:47]} Nbd7 {[%emt 0:00:31]} 10. O-O-O {[%emt 0:03:05]} O-O {[%emt 0:00:10]} 11. g4 {[%emt 0:01:40]} b5 {[%emt 0:00:10]} 12. Kb1 {[%emt 0:17:03]} b4 {[%emt 0:09:40]} 13. Ne2 {[%emt 0:04:41]} a5 {[%emt 0:00:31]} 14. Nbc1 {[%emt 0:01:04]} a4 {[%emt 0:11:52]} 15. Ng3 {[%emt 0:15:19]} Ne8 {[%emt 0:13:46]} 16. Nf5 {[%emt 0:03:48]} Rb8 {[%emt 0:02:15]} 17. h4 {[%emt 0:05:18]} Nc5 {[%emt 0:11:58]} 18. h5 {[%emt 0:08:07]} Qc7 {[%emt 0:10:47]} 19. Bh3 {[%emt 0:02:57]} b3 {[%emt 0:03:55]} 20. cxb3 {[%emt 0:01:25]} axb3 {[%emt 0:02:00]} 21. a3 {[%emt 0:00:14]} Na4 {[%emt 0:02:15]} 22. Ne2 {[%emt 0:05:46]} Qc2+ {[%emt 0:04:49]} 23. Ka1 {[%emt 0:01:24]} Bxf5 {[%emt 0:04:41]} 24. gxf5 {[%emt 0:01:21]} Nxb2 {[%emt 0:00:57]} 25. Qxc2 {[%emt 0:08:13]} bxc2 {[%emt 0:00:23]} 26. Rc1 {[%emt 0:00:44]} Nc4 {[%emt 0:00:55]} 27. Ba7 {[%emt 0:01:33]} Ra8 {[%emt 0:05:00]} 28. Rxc2 {[%emt 0:00:34]} Nxa3 {normal} 0-1